bitfinex/quotes_BTCUSD_20241205
["timestamp","ask_amount","ask_price","bid_price","bid_amount"]
[1733426273381,4e-07,100650.0,100640.0,0.219554]
[1733426277121,4e-07,100650.0,100640.0,0.41923005]
[1733426277344,4e-07,100650.0,100640.0,0.44782007]
[1733426280054,4e-07,100650.0,100640.0,0.49592007]
[1733426281574,4e-07,100650.0,100640.0,0.44531837]
[1733426281791,2e-07,100680.0,100670.0,0.1]
[1733426282006,2e-07,100680.0,100670.0,0.49371005]
[1733426282219,2e-07,100680.0,100670.0,0.55202115]
[1733426282890,9e-07,100690.0,100680.0,0.169527]
[1733426283184,9e-07,100690.0,100680.0,0.32850706]
[1733426283456,9e-07,100690.0,100680.0,0.069527]
[1733426285715,0.29832195,100690.0,100670.0,0.00017395]
[1733426285946,0.42062505,100680.0,100670.0,0.00017395]
[1733426286175,0.67062505,100680.0,100670.0,0.00017395]
[1733426287108,0.47197605,100680.0,100670.0,0.00017395]
[1733426287547,0.37197605,100680.0,100670.0,0.06970795]
[1733426288208,9e-07,100690.0,100670.0,0.1402352]
[1733426288433,9e-07,100690.0,100680.0,0.07052016]
[1733426289281,0.09967695,100690.0,100670.0,0.13923795]
[1733426289498,0.09967605,100680.0,100670.0,0.06970295]
[1733426289745,0.09967605,100680.0,100670.0,0.13923395]
[1733426290635,9e-07,100690.0,100680.0,0.069527]
[1733426290856,0.09967695,100690.0,100680.0,0.069527]
[1733426292912,0.09967695,100690.0,100670.0,0.13906]
[1733426293155,0.09967695,100690.0,100680.0,0.069527]
[1733426294744,0.12203143,100690.0,100670.0,0.20859]
[1733426294984,0.09967605,100680.0,100670.0,0.06953]
[1733426295236,9e-07,100690.0,100680.0,0.069527]
[1733426295454,9e-07,100690.0,100680.0,0.07052014]
[1733426295708,9e-07,100690.0,100680.0,0.07052002]
[1733426296251,9e-07,100690.0,100680.0,0.27019607]
[1733426296489,9e-07,100690.0,100680.0,0.26920305]
[1733426296490,0.0017309,100690.0,100680.0,0.26920305]
[1733426296709,0.0017309,100690.0,100680.0,0.069527]
[1733426296934,0.0017309,100690.0,100680.0,0.07052]
[1733426297372,0.0017309,100690.0,100680.0,0.069527]
[1733426297600,0.0017309,100690.0,100680.0,0.07052]
[1733426298288,0.0017309,100690.0,100680.0,0.07052006]
[1733426298506,0.0017309,100690.0,100680.0,0.17019611]
[1733426298790,0.0017309,100690.0,100680.0,0.35159611]
[1733426299033,0.0017309,100690.0,100680.0,0.16920305]
[1733426299264,0.0017309,100690.0,100680.0,0.07051999]
[1733426299509,0.0017309,100690.0,100680.0,0.08215651]
[1733426299980,0.0017309,100690.0,100680.0,0.08116352]
[1733426300227,0.0017309,100690.0,100680.0,0.08215651]
[1733426300472,0.0017309,100690.0,100680.0,0.08116352]
[1733426300717,0.0017309,100690.0,100680.0,0.08215658]
[1733426300962,0.0017309,100690.0,100680.0,0.28183263]
[1733426301200,0.0017309,100690.0,100680.0,0.28083957]
[1733426301965,9e-07,100690.0,100680.0,0.28083957]
[1733426302210,7e-07,100700.0,100690.0,0.31952]
[1733426302457,7e-07,100700.0,100690.0,0.41919605]
[1733426302690,7e-07,100700.0,100690.0,0.44778607]
[1733426302942,0.0467338,100710.0,100690.0,0.58682207]
[1733426303183,0.0467338,100710.0,100700.0,0.07050585]
[1733426303406,0.0467338,100710.0,100700.0,0.1701819]
[1733426303679,8e-07,100710.0,100700.0,0.29877188]
[1733426303933,8e-07,100710.0,100700.0,0.26918905]
[1733426306420,8e-07,100710.0,100700.0,0.16918905]
[1733426306701,8e-07,100710.0,100700.0,0.069513]
[1733426306929,8e-07,100710.0,100700.0,0.07050579]
[1733426307160,8e-07,100710.0,100700.0,0.069513]
[1733426308632,8e-07,100710.0,100700.0,0.07050579]
[1733426308857,8e-07,100710.0,100700.0,0.069513]
[1733426309327,8e-07,100710.0,100700.0,0.07050592]
[1733426309999,0.1786942,100730.0,100710.0,0.139003]
[1733426310242,0.27837025,100730.0,100720.0,0.069499]
[1733426310937,0.27837025,100730.0,100710.0,0.208506]
[1733426311161,0.47692025,100730.0,100720.0,0.068499]
[1733426311392,0.27896031,100730.0,100720.0,0.068499]
[1733426311873,0.47752231,100730.0,100710.0,0.208506]
[1733426312087,0.09967605,100720.0,100710.0,0.069506]
[1733426312317,0.29824605,100720.0,100710.0,0.069506]
[1733426312560,0.09967605,100720.0,100710.0,0.069506]
[1733426313466,0.29824605,100720.0,100710.0,0.069506]
[1733426313927,0.09967605,100720.0,100710.0,0.069506]
[1733426314199,0.49683705,100720.0,100700.0,0.15077924]
[1733426314446,0.54409179,100720.0,100700.0,0.08127024]
[1733426314681,0.09967605,100720.0,100700.0,0.15078024]
[1733426314944,0.09967605,100720.0,100710.0,0.069506]
[1733426315876,0.17928426,100730.0,100720.0,0.069499]
[1733426316112,0.27896031,100730.0,100720.0,0.069499]
[1733426316355,0.47751731,100730.0,100710.0,0.139003]
[1733426316578,0.09967605,100720.0,100710.0,0.139002]
[1733426316818,0.12757208,100720.0,100710.0,0.0695]
[1733426317068,0.09967605,100720.0,100710.0,0.0695]
[1733426319475,0.17928426,100730.0,100710.0,0.0695]
[1733426319693,0.27896031,100730.0,100720.0,0.069499]
[1733426326169,0.15196031,100730.0,100720.0,0.069499]
[1733426326831,0.0828,100720.0,100710.0,0.1398687]
[1733426327059,0.18247605,100720.0,100710.0,0.1398687]
[1733426327741,0.23197605,100720.0,100710.0,0.0703667]
[1733426328636,0.23197605,100720.0,100710.0,0.05820334]
[1733426328849,0.43054605,100720.0,100710.0,0.0008667]
[1733426329282,0.23197605,100720.0,100710.0,0.0703727]
[1733426329497,0.43054605,100720.0,100710.0,0.0703727]
[1733426329708,0.23197605,100720.0,100710.0,0.0008667]
[1733426329915,0.43054605,100720.0,100710.0,0.0008667]
[1733426330546,0.44888225,100720.0,100710.0,0.0008667]
[1733426330758,0.64888225,100720.0,100710.0,0.0008667]
[1733426330975,0.79888225,100720.0,100710.0,0.0008667]
[1733426331398,1.23348225,100720.0,100710.0,0.0008667]
[1733426331609,1.13348225,100720.0,100710.0,0.0008667]
[1733426331822,1.23348225,100720.0,100710.0,0.0008667]
[1733426332039,1.21514605,100720.0,100710.0,0.0008667]
[1733426332667,1.31514605,100720.0,100710.0,0.0008667]
[1733426333990,0.76657605,100720.0,100710.0,0.0803027]
[1733426335107,1.01721045,100720.0,100710.0,0.0008667]
[1733426335543,0.93441045,100720.0,100710.0,0.0008667]
[1733426335766,0.09967605,100720.0,100710.0,0.0803027]
[1733426336641,0.09967605,100720.0,100700.0,0.079439]
[1733426337029,0.09967605,100720.0,100710.0,0.079436]
[1733426337502,0.61577104,100720.0,100700.0,0.158882]
[1733426337711,0.09967605,100710.0,100700.0,0.079439]
[1733426339848,0.06374983,100730.0,100710.0,0.079436]
[1733426340070,0.09967605,100720.0,100710.0,0.079429]
[1733426340753,0.09967605,100720.0,100700.0,0.139018]
[1733426340963,0.42444374,100720.0,100700.0,0.139017]
[1733426341173,0.15,100710.0,100690.0,0.08118944]
[1733426341380,0.29907605,100710.0,100690.0,0.15070344]
[1733426341598,0.29907605,100710.0,100700.0,0.069513]
[1733426342470,0.29907605,100710.0,100700.0,0.0703797]
[1733426343820,0.59558527,100710.0,100700.0,0.0703797]
[1733426344502,0.39699527,100710.0,100700.0,0.0703797]
[1733426344934,0.59558527,100710.0,100700.0,0.0008667]
[1733426345355,0.29907605,100710.0,100700.0,0.0703797]
[1733426345560,0.29459355,100710.0,100700.0,0.0703797]
[1733426346642,0.49318355,100710.0,100700.0,0.0008667]
[1733426348171,0.45546153,100710.0,100700.0,0.0008667]
[1733426349715,0.45546153,100710.0,100700.0,0.0703797]
[1733426349968,0.45546153,100710.0,100700.0,0.0008667]
[1733426350175,0.24519355,100710.0,100700.0,0.0703797]
[1733426350386,0.54170277,100710.0,100700.0,0.0008667]
[1733426351025,0.34311277,100710.0,100700.0,0.0703797]
[1733426351694,0.24519355,100710.0,100700.0,0.0703797]
[1733426351909,0.09967605,100710.0,100700.0,0.0703797]
[1733426352337,0.01319631,100720.0,100700.0,0.2094017]
[1733426352555,0.11287236,100720.0,100710.0,0.069506]
[1733426352986,0.0017334,100720.0,100710.0,0.069506]
[1733426353421,0.0017334,100720.0,100710.0,0.07049887]
[1733426353673,0.0017334,100720.0,100710.0,0.069506]
[1733426357773,0.0017334,100720.0,100710.0,0.145706]
[1733426358429,0.0017334,100720.0,100710.0,0.14669877]
[1733426359347,0.0017334,100720.0,100710.0,0.39637482]
[1733426359560,0.0017334,100720.0,100710.0,0.44298205]
[1733426361132,0.0017328,100740.0,100730.0,0.0809]
[1733426361358,0.0017328,100740.0,100730.0,0.44726057]
[1733426361577,0.0017328,100740.0,100730.0,0.44626805]
[1733426362478,0.0017328,100740.0,100730.0,0.300392]
[1733426364293,0.0759,100710.0,100700.0,0.01228077]
[1733426364518,0.53005605,100710.0,100700.0,0.0008667]
[1733426364742,0.78005605,100710.0,100700.0,0.0008667]
[1733426366541,0.448609,100700.0,100690.0,0.000867]
[1733426366766,0.54828505,100700.0,100690.0,0.000867]
[1733426366984,0.64828505,100700.0,100690.0,0.000867]
[1733426367202,0.74620427,100700.0,100690.0,0.000867]
[1733426367894,0.74679433,100700.0,100690.0,0.000867]
[1733426368986,0.64887511,100700.0,100690.0,0.000867]
[1733426370977,0.54887511,100700.0,100690.0,0.000867]
[1733426371411,0.56048504,100700.0,100690.0,0.000867]
[1733426371887,0.46048504,100700.0,100690.0,0.000867]
[1733426372110,0.26187604,100700.0,100690.0,0.000867]
[1733426372538,0.46048504,100700.0,100690.0,0.000867]
[1733426375282,0.25026611,100700.0,100690.0,0.060455]
[1733426375737,0.25026611,100700.0,100690.0,0.000867]
[1733426375969,0.44887511,100700.0,100690.0,0.000867]
[1733426376636,0.25026611,100700.0,100690.0,0.060455]
[1733426377724,0.31764061,100700.0,100690.0,0.000867]
[1733426377940,0.51624961,100700.0,100690.0,0.000867]
[1733426378182,0.35026611,100700.0,100690.0,0.060455]
[1733426378412,0.45199991,100700.0,100690.0,0.060455]
[1733426378648,0.45195991,100700.0,100690.0,0.060455]
[1733426379119,0.35195991,100700.0,100690.0,0.060455]
[1733426379330,0.45195991,100700.0,100690.0,0.060455]
[1733426379801,0.35888376,100700.0,100690.0,0.060455]
[1733426380691,0.25888376,100700.0,100690.0,0.060455]
[1733426382020,0.45749276,100700.0,100690.0,0.000867]
[1733426383130,0.50689276,100700.0,100690.0,0.000867]
[1733426385792,0.52142063,100700.0,100690.0,0.000867]
[1733426389083,0.32281163,100700.0,100690.0,0.060455]
[1733426389307,0.52142063,100700.0,100690.0,0.000867]
[1733426389971,0.59936612,100700.0,100690.0,0.000867]
[1733426391156,0.25888376,100700.0,100690.0,0.000867]
[1733426391381,0.25888376,100700.0,100690.0,0.060455]
[1733426392031,0.25195991,100700.0,100690.0,0.060455]
[1733426392255,0.25888376,100700.0,100690.0,0.060455]
[1733426395173,0.25888376,100700.0,100690.0,0.000867]
[1733426395393,0.45749276,100700.0,100690.0,0.000867]
[1733426395865,0.45745276,100700.0,100690.0,0.060455]
[1733426396315,0.25884376,100700.0,100690.0,0.060455]
[1733426396748,0.45745276,100700.0,100690.0,0.000867]
[1733426398259,0.448649,100680.0,100670.0,0.01532433]
[1733426398477,1.20642505,100680.0,100670.0,0.0008651]
[1733426398689,1.11334464,100680.0,100670.0,0.0008651]
[1733426398984,0.57874464,100680.0,100670.0,0.0008651]
[1733426399223,0.77874464,100680.0,100670.0,0.0008651]
[1733426399436,0.87666386,100680.0,100670.0,0.0008651]
[1733426400059,0.77666386,100680.0,100670.0,0.0008651]
[1733426400286,0.87666386,100680.0,100670.0,0.0008651]
[1733426402465,1.41126386,100680.0,100670.0,0.0008651]
[1733426402948,1.32549251,100680.0,100670.0,0.0008651]
[1733426403408,0.30659564,100680.0,100670.0,0.0604651]
[1733426403627,0.20659564,100680.0,100670.0,0.0604651]
[1733426403852,0.10659564,100680.0,100670.0,0.0604651]
[1733426404075,0.00691959,100680.0,100670.0,0.0604651]
[1733426404298,0.10691959,100680.0,100670.0,0.0604651]
[1733426404520,0.20691959,100680.0,100670.0,0.0604651]
[1733426405374,0.00691959,100680.0,100670.0,0.07445914]
[1733426405594,0.20691959,100680.0,100670.0,0.07445914]
[1733426405757,0.10691959,100680.0,100670.0,0.07445914]
[1733426406142,0.00691959,100680.0,100670.0,0.07445914]
[1733426406347,0.00691959,100680.0,100670.0,0.07545238]
[1733426406772,0.1,100690.0,100680.0,0.11918]
[1733426407867,0.20232386,100700.0,100680.0,0.11918]
[1733426408105,0.30199991,100700.0,100690.0,0.059588]
[1733426411454,0.20199991,100700.0,100690.0,0.059588]
[1733426412136,0.00232386,100700.0,100690.0,0.059588]
[1733426412559,0.00232386,100700.0,100690.0,0.06058106]
[1733426412767,0.00232386,100700.0,100690.0,0.059588]
[1733426413208,0.00232386,100700.0,100690.0,0.06058104]
[1733426413850,0.00232386,100700.0,100690.0,0.07486322]
[1733426414965,0.00232386,100700.0,100690.0,0.12426322]
[1733426417024,0.00232386,100700.0,100690.0,0.12327018]
[1733426417235,0.00232386,100700.0,100690.0,0.12426313]
[1733426417450,0.00232386,100700.0,100690.0,0.12327018]
[1733426417655,0.00232386,100700.0,100690.0,0.12426311]
[1733426418353,8.6e-07,100700.0,100690.0,0.12426311]
[1733426418762,8.6e-07,100700.0,100690.0,0.27327018]
[1733426419425,0.1,100730.0,100720.0,0.059571]
[1733426419607,0.29967605,100730.0,100720.0,0.06016106]
[1733426419816,0.19967605,100730.0,100720.0,0.06016106]
[1733426420249,0.29967605,100730.0,100720.0,0.06016106]
[1733426420998,0.29836018,100730.0,100720.0,0.06016106]
[1733426421462,0.19836018,100730.0,100720.0,0.06016106]
[1733426421671,0.29836018,100730.0,100720.0,0.06016106]
[1733426424812,0.19836018,100730.0,100720.0,0.06016106]
[1733426425230,0.29836018,100730.0,100720.0,0.06016106]
[1733426425449,0.10041693,100740.0,100730.0,0.059565]
[1733426425668,0.0017328,100740.0,100730.0,0.059565]
[1733426427074,0.0017328,100740.0,100730.0,0.06055756]
[1733426427711,8e-07,100740.0,100730.0,0.06055756]
[1733426429235,8e-07,100740.0,100730.0,0.16023361]
[1733426429449,0.77604465,100750.0,100740.0,0.209559]
[1733426429701,0.77604465,100750.0,100740.0,0.43093505]
[1733426429906,0.07178465,100750.0,100740.0,0.43093505]
[1733426430321,0.07178465,100750.0,100740.0,0.46012979]
[1733426430503,6.5e-07,100750.0,100740.0,0.43225092]
[1733426430744,6.5e-07,100750.0,100740.0,0.46012979]
[1733426431209,6.5e-07,100750.0,100740.0,0.43225092]
[1733426431630,6.5e-07,100750.0,100740.0,0.46012979]
[1733426431839,6.5e-07,100750.0,100740.0,0.43225092]
[1733426432049,6.5e-07,100750.0,100740.0,0.46012979]
[1733426432529,6.5e-07,100750.0,100740.0,0.43225092]
[1733426432745,6.5e-07,100750.0,100740.0,0.46012979]
[1733426432963,6.5e-07,100750.0,100740.0,0.43225092]
[1733426433178,6.5e-07,100750.0,100740.0,0.46012979]
[1733426433370,6.5e-07,100750.0,100740.0,0.43225092]
[1733426436353,6.5e-07,100760.0,100740.0,0.55136592]
[1733426436569,6.5e-07,100760.0,100750.0,0.31022131]
[1733426436788,6.5e-07,100760.0,100750.0,0.30922905]
[1733426438486,6.5e-07,100760.0,100750.0,0.209553]
[1733426439133,6.5e-07,100760.0,100740.0,0.20870786]
[1733426439341,6.5e-07,100760.0,100750.0,0.059553]
[1733426441323,6.5e-07,100760.0,100750.0,0.21054536]
[1733426441540,6.5e-07,100760.0,100750.0,0.209553]
[1733426441746,0.21391183,100790.0,100780.0,0.059535]
[1733426441931,0.21358788,100790.0,100780.0,0.059535]
[1733426442168,0.31358788,100790.0,100780.0,0.059535]
[1733426442859,0.21490375,100790.0,100780.0,0.059535]
[1733426443084,0.31358788,100790.0,100780.0,0.05971019]
[1733426443309,0.21358788,100790.0,100780.0,0.05971019]
[1733426443528,0.31358788,100790.0,100780.0,0.05871019]
[1733426443740,0.21490375,100790.0,100780.0,0.05871019]
[1733426443975,0.11391183,100790.0,100780.0,0.05871019]
[1733426444807,0.11291183,100790.0,100780.0,0.05871019]
[1733426445464,0.11291183,100790.0,100780.0,0.09991808]
[1733426445667,0.11291183,100790.0,100780.0,0.10091024]
[1733426446101,0.11291183,100790.0,100780.0,0.07303137]
[1733426446315,0.11291183,100790.0,100780.0,0.10091024]
[1733426446946,0.11291183,100790.0,100780.0,0.07303137]
[1733426447369,0.21258788,100790.0,100780.0,0.07203921]
[1733426447807,0.11390375,100790.0,100780.0,0.07203921]
[1733426448470,0.21390375,100790.0,100780.0,0.07203921]
[1733426449771,0.11390375,100790.0,100780.0,0.07203921]
[1733426450009,0.21390375,100790.0,100780.0,0.07290531]
[1733426450228,0.21563595,100790.0,100780.0,0.07290531]
[1733426451089,0.19123595,100790.0,100780.0,0.00104129]
[1733426451294,0.38966795,100790.0,100780.0,0.00104129]
[1733426451748,0.19123595,100790.0,100780.0,0.06057629]
[1733426453693,0.29123595,100790.0,100780.0,0.06057629]
[1733426453946,0.19123595,100790.0,100780.0,0.06057629]
[1733426454156,0.21541718,100790.0,100780.0,0.00104129]
[1733426454366,0.55934918,100790.0,100780.0,0.00104129]
[1733426454996,0.1455,100760.0,100750.0,0.05955]
[1733426455205,0.24517605,100760.0,100750.0,0.05955]
[1733426455831,0.34386018,100760.0,100750.0,0.05955]
[1733426456049,0.24418413,100760.0,100750.0,0.05955]
[1733426456525,0.19868413,100760.0,100750.0,0.05955]
[1733426456728,0.19967605,100760.0,100750.0,0.07325122]
[1733426456957,0.09967605,100760.0,100750.0,0.07325122]
[1733426457137,0.19967605,100760.0,100750.0,0.07325122]
[1733426457906,0.19868413,100760.0,100750.0,0.07325122]
[1733426458960,0.09868413,100760.0,100750.0,0.07325122]
[1733426459165,0.19868413,100760.0,100750.0,0.07325122]
[1733426462137,0.19868413,100760.0,100750.0,0.07411832]
[1733426464593,0.09868413,100760.0,100750.0,0.07411832]
[1733426465080,0.19868413,100760.0,100750.0,0.07411832]
[1733426466247,0.09868413,100760.0,100750.0,0.07411832]
[1733426466448,0.19868413,100760.0,100750.0,0.07411832]
[1733426466649,0.09868413,100760.0,100750.0,0.07411832]
[1733426466871,0.19868413,100760.0,100750.0,0.07411832]
[1733426469158,0.19868413,100760.0,100750.0,0.07311832]
[1733426469377,0.09868413,100760.0,100750.0,0.07311832]
[1733426469813,0.19868413,100760.0,100750.0,0.07311832]
[1733426470230,0.09868413,100760.0,100750.0,0.07311832]
[1733426470850,0.19868413,100760.0,100750.0,0.07311832]
[1733426471058,0.09868413,100760.0,100750.0,0.07311832]
[1733426471670,0.19868413,100760.0,100750.0,0.07311832]
[1733426471909,0.19967605,100760.0,100750.0,0.07311832]
[1733426472524,0.29836018,100760.0,100750.0,0.07311832]
[1733426472754,0.19967605,100760.0,100750.0,0.07311832]
[1733426474370,0.11482113,100790.0,100760.0,0.140986]
[1733426474574,0.016137,100790.0,100780.0,0.059535]
[1733426474806,0.016137,100790.0,100780.0,0.06052711]
[1733426474987,0.11482113,100790.0,100780.0,0.06052711]
[1733426475222,0.11482113,100790.0,100780.0,0.059535]
[1733426477196,0.21449718,100790.0,100780.0,0.059535]
[1733426477414,0.47114505,100790.0,100770.0,0.119073]
[1733426477619,0.47114505,100790.0,100750.0,0.15612032]
[1733426477620,0.0781,100770.0,100760.0,0.119086]
[1733426477828,0.25657605,100770.0,100760.0,0.119086]
[1733426478472,0.26354497,100770.0,100760.0,0.119086]
[1733426478893,0.18375305,100770.0,100760.0,0.119086]
[1733426481685,0.18474497,100770.0,100760.0,0.119086]
[1733426482145,0.2834291,100770.0,100760.0,0.119086]
[1733426482355,0.18474497,100770.0,100760.0,0.119086]
[1733426483295,0.09868413,100760.0,100750.0,0.13366832]
[1733426483378,0.41366416,100770.0,100750.0,0.19321832]
[1733426483729,0.09967605,100760.0,100750.0,0.13366832]
[1733426483957,0.09868413,100760.0,100750.0,0.13366832]
[1733426484202,0.10565272,100760.0,100750.0,0.13366832]
[1733426484425,0.00696859,100760.0,100750.0,0.13366832]
[1733426484652,0.10565272,100760.0,100750.0,0.13366832]
[1733426489442,0.26184464,100760.0,100750.0,0.07411832]
[1733426492541,0.28342877,100760.0,100750.0,0.07411832]
[1733426492758,0.18375272,100760.0,100750.0,0.07411832]
[1733426496410,0.18474464,100760.0,100750.0,0.07411832]
[1733426496912,0.25984464,100760.0,100750.0,0.07411832]
[1733426497990,0.18474464,100760.0,100750.0,0.07411832]
[1733426505515,0.00696859,100760.0,100750.0,0.07411832]
[1733426505740,0.00696859,100760.0,100750.0,0.07511077]
[1733426506706,5.9e-07,100760.0,100750.0,0.17478682]
[1733426506930,6.1e-07,100760.0,100750.0,0.33048214]
[1733426507147,0.0781,100770.0,100760.0,0.059547]
[1733426507368,0.0017344,100780.0,100770.0,0.059541]
[1733426508595,0.0017344,100780.0,100770.0,0.08838076]
[1733426509026,0.0017344,100780.0,100770.0,0.08937297]
[1733426509237,0.0017344,100780.0,100770.0,0.26874902]
[1733426509614,0.0017344,100780.0,100770.0,0.26775681]
[1733426510473,0.0017344,100780.0,100770.0,0.31395681]
[1733426511514,0.0017344,100780.0,100770.0,0.08838076]
[1733426511706,0.17851853,100780.0,100770.0,0.059541]
[1733426511926,0.32678413,100770.0,100760.0,0.119086]
[1733426513106,0.41007605,100770.0,100760.0,0.119086]
[1733426513332,0.09868413,100760.0,100730.0,0.1249]
[1733426513544,0.09868413,100760.0,100740.0,0.00099245]
[1733426513742,0.09868413,100760.0,100750.0,0.119098]
[1733426513995,0.2281,100770.0,100760.0,0.059547]
[1733426514213,0.15,100770.0,100760.0,0.06053941]
[1733426515710,0.17851853,100780.0,100770.0,0.059541]
[1733426515927,0.10041853,100780.0,100770.0,0.059541]
[1733426516812,0.17851853,100780.0,100770.0,0.059541]
[1733426517053,0.10041853,100780.0,100770.0,0.059541]
[1733426517241,0.17851853,100780.0,100770.0,0.059541]
[1733426517512,0.0017344,100780.0,100770.0,0.059541]
[1733426517756,0.0798344,100780.0,100770.0,0.059541]
[1733426517960,0.17851853,100780.0,100770.0,0.059541]
[1733426520034,0.17851853,100780.0,100770.0,0.07250627]
[1733426520296,0.10141045,100780.0,100770.0,0.07250627]
[1733426520919,0.17851853,100780.0,100770.0,0.07250627]
[1733426521133,0.0798344,100780.0,100770.0,0.07250627]
[1733426521541,0.0017344,100780.0,100770.0,0.07250627]
[1733426522301,0.17851853,100780.0,100770.0,0.07250627]
[1733426523383,0.17851853,100780.0,100770.0,0.01296527]
[1733426523384,0.29986245,100780.0,100770.0,0.01296527]
[1733426523593,0.58062745,100780.0,100760.0,0.04962]
[1733426523798,0.09967605,100770.0,100760.0,0.04962]
[1733426526956,0.34555605,100770.0,100750.0,0.0504913]
[1733426527167,0.0762,100760.0,100750.0,0.0504913]
[1733426527401,0.17587605,100760.0,100750.0,0.0008673]
[1733426527646,0.17587605,100760.0,100750.0,0.0504943]
[1733426529561,0.21805076,100760.0,100750.0,0.0008673]
[1733426529777,0.41654176,100760.0,100750.0,0.0008673]
[1733426531021,0.37336705,100760.0,100750.0,0.0008673]
[1733426533565,0.62226705,100760.0,100750.0,0.0008673]
[1733426534232,0.52226705,100760.0,100750.0,0.0008673]
[1733426534472,0.22377605,100760.0,100750.0,0.0008673]
[1733426534675,0.22377605,100760.0,100750.0,0.0494943]
[1733426534891,0.27646018,100760.0,100750.0,0.0494943]
[1733426535111,0.17678413,100760.0,100750.0,0.0494943]
[1733426535329,0.17678413,100760.0,100750.0,0.0991193]
[1733426535561,0.19836018,100760.0,100750.0,0.0991193]
[1733426535780,0.12784207,100760.0,100740.0,0.1001255]
[1733426535997,0.09967605,100750.0,100740.0,0.1001255]
[1733426537108,0.09979319,100750.0,100740.0,0.1001255]
[1733426541124,0.24979319,100750.0,100740.0,0.1001255]
[1733426542635,0.24979319,100750.0,100740.0,0.0008675]
[1733426542636,0.44830419,100750.0,100740.0,0.0008675]
[1733426542862,0.52743899,100750.0,100740.0,0.0008675]
[1733426543069,0.32892799,100750.0,100740.0,0.0504995]
[1733426543992,0.42631029,100750.0,100740.0,0.0504995]
[1733426544242,0.62482129,100750.0,100740.0,0.0504995]
[1733426544412,0.62482129,100750.0,100740.0,0.0008675]
[1733426545086,0.52743899,100750.0,100740.0,0.0008675]
[1733426545292,0.52743899,100750.0,100740.0,0.0504995]
[1733426545731,0.52743899,100750.0,100740.0,0.0008675]
[1733426546828,1.20973899,100750.0,100740.0,0.0008675]
[1733426548961,1.22233354,100750.0,100740.0,0.0008675]
[1733426549182,1.32025276,100750.0,100740.0,0.0008675]
[1733426551212,1.12233354,100750.0,100740.0,0.0008675]
[1733426552627,0.58773354,100750.0,100740.0,0.0008675]
[1733426552867,0.10152799,100750.0,100740.0,0.0504995]
[1733426553110,0.17962799,100750.0,100740.0,0.0504995]
[1733426553320,0.00185194,100750.0,100740.0,0.0504995]
[1733426553562,0.07995194,100750.0,100740.0,0.0504995]
[1733426553780,0.00185194,100750.0,100740.0,0.10079206]
[1733426554016,0.00185194,100750.0,100740.0,0.28236811]
[1733426554260,0.00185194,100750.0,100740.0,0.28137555]
[1733426555853,0.00185194,100750.0,100740.0,0.29411444]
[1733426557197,0.10041853,100780.0,100770.0,0.049617]
[1733426557440,0.0017344,100780.0,100770.0,0.05072641]
[1733426557662,0.0017344,100780.0,100770.0,0.04973414]
[1733426559230,0.0017344,100780.0,100770.0,0.09632635]
[1733426560782,0.0017344,100780.0,100770.0,0.1960024]
[1733426561424,0.0017344,100780.0,100770.0,0.04973414]
[1733426562377,0.0017344,100780.0,100770.0,0.04873414]
[1733426562800,0.0017344,100780.0,100770.0,0.04972632]
[1733426563648,0.0017344,100780.0,100770.0,0.14940237]
[1733426563835,0.0017344,100780.0,100770.0,0.27810237]
[1733426564057,0.0017344,100780.0,100770.0,0.27711019]
[1733426564492,0.0142259,100790.0,100780.0,0.0803]
[1733426564702,0.0142259,100790.0,100780.0,0.129913]
[1733426564932,0.11291003,100790.0,100780.0,0.049613]
[1733426565733,0.19101003,100790.0,100780.0,0.049613]
[1733426566522,0.19074373,100790.0,100780.0,0.049613]
[1733426567519,0.19074373,100790.0,100780.0,0.04450171]
[1733426567714,0.11264373,100790.0,100780.0,0.04450171]
[1733426568024,0.19074373,100790.0,100780.0,0.04450171]
[1733426570619,0.0139596,100790.0,100780.0,0.2271699]
[1733426570854,0.0139596,100790.0,100780.0,0.22617776]
[1733426573797,0.0139596,100790.0,100780.0,0.14417776]
[1733426574751,0.14541853,100810.0,100800.0,0.049603]
[1733426576239,0.0467344,100810.0,100800.0,0.049603]
[1733426577555,0.0467344,100810.0,100800.0,0.05059491]
[1733426577769,0.0467344,100810.0,100800.0,0.049603]
[1733426578355,0.0467344,100810.0,100800.0,0.05059492]
[1733426580222,0.04666943,100810.0,100800.0,0.049603]
[1733426580877,0.04666943,100810.0,100800.0,0.0654801]
[1733426583823,0.14535356,100810.0,100800.0,0.0654801]
[1733426584037,0.20226943,100810.0,100800.0,0.0654801]
[1733426586273,0.38447739,100810.0,100800.0,0.0654801]
[1733426586514,0.61803848,100810.0,100800.0,0.0654801]
[1733426587472,0.17678413,100790.0,100780.0,0.09584611]
[1733426588246,0.17678413,100790.0,100780.0,0.11179115]
[1733426590763,0.17678413,100800.0,100780.0,0.11278338]
[1733426591084,0.09868413,100800.0,100790.0,0.099212]
[1733426591255,0.17678413,100800.0,100790.0,0.099212]
[1733426592629,0.09868413,100800.0,100790.0,0.099212]
[1733426593549,0.17678413,100800.0,100790.0,0.099212]
[1733426593766,0.09868413,100800.0,100790.0,0.099212]
[1733426593984,0.17678413,100800.0,100790.0,0.099212]
[1733426597138,0.30095356,100810.0,100800.0,0.049603]
[1733426597342,0.29535356,100810.0,100800.0,0.049603]
[1733426597526,0.37345356,100810.0,100800.0,0.049603]
[1733426598485,0.14535356,100810.0,100800.0,0.049603]
[1733426598720,0.22345356,100810.0,100800.0,0.049603]
[1733426600114,0.14535356,100810.0,100800.0,0.049603]
[1733426600338,0.22345356,100810.0,100800.0,0.049603]
[1733426600743,0.04666943,100810.0,100800.0,0.05059498]
[1733426601101,4.3e-07,100810.0,100800.0,0.15027103]
[1733426601299,0.0017346,100830.0,100820.0,0.049593]
[1733426601510,0.0017346,100830.0,100820.0,0.05058472]
[1733426602604,0.0023247,100830.0,100820.0,0.05058472]
[1733426604605,0.0023247,100830.0,100820.0,0.049593]
[1733426604780,0.0022847,100830.0,100820.0,0.049593]
[1733426605425,0.10096883,100830.0,100820.0,0.049593]
[1733426607300,0.40436883,100830.0,100820.0,0.049593]
[1733426607509,0.3056847,100830.0,100820.0,0.049593]
[1733426607720,0.40436883,100830.0,100820.0,0.049593]
[1733426607952,0.32906883,100830.0,100820.0,0.049593]
[1733426608166,0.32906883,100830.0,100820.0,0.06556503]
[1733426612790,0.2303847,100830.0,100820.0,0.06556503]
[1733426613014,0.45031375,100830.0,100820.0,0.01597203]
[1733426613222,0.57791375,100830.0,100820.0,0.01597203]
[1733426613423,0.2281,100820.0,100810.0,0.099189]
[1733426613636,0.1602,100810.0,100800.0,0.0513338]
[1733426613838,0.25987605,100810.0,100800.0,0.0513338]
[1733426615030,0.45927605,100810.0,100800.0,0.01779213]
[1733426615230,0.45927605,100810.0,100800.0,0.06739513]
[1733426615673,0.38117605,100810.0,100800.0,0.06739513]